Cogmind - Beta 14 @@@ ROGUE MODE // 2024.08.23 @ 20:45:16 Player: Styles Result: Escaped! Performance ------------- Evolutions (9) 4500 Regions Visited (17) 3400 Robots Destroyed (131) 655 Value Destroyed (3816) 3816 Prototype IDs (38) 760 Alien Tech Used (0) 0 Bonus (4901) 4901 TOTAL SCORE: 18032 Bonus ------- High Alert Combat Kills 33 Entered DSFs 500 Met Warlord at Base 500 MAIN.C Attacked Warlord 500 Warlord Defense Kills 368 Win 3000 Cogmind --------- Core Integrity 1350/1600 Matter 174/300 Energy 166/170 System Corruption 12% Temperature Cool (8) Movement Flying (31) Location To Epsilon Eridani Parts ------- > --- POWER (2) -------- Light Antimatter Reactor > --- PROPULSION (7) --- Cooled Impulse Thruster Cooled Impulse Thruster Impulse Thruster Array Impulse Thruster Array > --- UTILITY (13) ----- Medium Storage Unit Machine Analyzer Improved Melee Analysis Suite Advanced Melee Analysis Suite Advanced Melee Analysis Suite Hacking Suite Improved Hacking Suite Experimental Hacking Suite System Shield > --- WEAPON (3) ------- Micro-nuke Launcher Phasing Sabre > --- INVENTORY (10) --- Field Propulsion Array Cooled Impulse Thruster Impulse Thruster Array Gamma Bomb Array RU-N14's Throwing Claymores v3 (4) Peak State ------------ > --- POWER ------------ Light Antimatter Reactor Light Antimatter Reactor > --- PROPULSION ------- Impulse Thruster Cooled Impulse Thruster Cooled Impulse Thruster Impulse Thruster Array Impulse Thruster Array > --- UTILITY ---------- Medium Storage Unit Advanced Weight Redist. System Machine Analyzer Advanced Sensor Array Advanced Signal Interpreter Improved Melee Analysis Suite Advanced Melee Analysis Suite Advanced Melee Analysis Suite Hacking Suite Improved Hacking Suite Experimental Hacking Suite System Shield Minesniffer Drone Bay > --- WEAPON ----------- Gamma Bomb Array Phasing Sabre Particle Cleaver > --- INVENTORY -------- Field Propulsion Array Cooled Impulse Thruster Impulse Thruster Array RU-N14's Throwing Claymores v3 [Rating: 157] Favorites ----------- Power Light Deuterium Engine Engine Light Deuterium Engine Power Core Light Nuclear Core Reactor Light Antimatter Reactor Propulsion Light Treads Treads Light Treads Leg VSS Leg Wheel Compact Wheel Hover Unit Combat Antigrav System Flight Unit Xenon Bombardment Thruster Utility Large Storage Unit Device Advanced Sensor Array Storage Large Storage Unit Processor Advanced Melee Analysis Suite Hackware Hacking Suite Protection Improved Light Armor Plating Weapon Improved Assault Rifle Energy Gun Small Laser Energy Cannon Beam Cannon Ballistic Gun Improved Assault Rifle Ballistic Cannon Light Cannon Launcher Smartbomb Launcher Special Weapon RU-N14's Throwing Claymores v3 Impact Weapon Thunder Hammer Slashing Weapon Phasing Sabre Piercing Weapon Spear Build | -11 -10 -9 -9 -8 -7 -7 -6 -6 -5 -5 -5 -5 -4 -4 -3 -2 -1 ------- Run | Yrd Mat Mat Sto Mat Fac DSF Fac Ext Fac Upp Upp War Pro Fac Res Res Acc Slots Evolved 18 | . . 2 . 2 2 . 2 . 2 . . . . 2 2 2 2 Power 1 | . . . . . . . . . 1 . . . . . . . . Propulsion 5 | . . . . 1 1 . . . . . . . . 1 1 1 . Utility 11 | . . 2 . 1 1 . 2 . 1 . . . . 1 1 1 1 Weapon 1 | . . . . . . . . . . . . . . . . . 1 Parts Attached 221 | 6 13 18 37 27 16 . 7 1 18 6 5 21 10 10 8 6 12 Power 30 | 1 1 1 3 2 2 . 2 1 2 . 1 4 2 2 2 1 3 Engine 19 | 1 1 1 3 2 1 . 2 . 2 . . 3 1 1 1 . . Core 8 | . . . . . 1 . . 1 . . 1 1 1 1 1 1 . Reactor 3 | . . . . . . . . . . . . . . . . . 3 Propulsion 56 | 2 4 4 9 5 6 . 2 . 3 2 . 6 1 2 5 2 3 Treads 10 | . . . 5 5 . . . . . . . . . . . . . Leg 1 | . . . . . 1 . . . . . . . . . . . . Wheel 14 | 2 4 4 4 . . . . . . . . . . . . . . Hover 1 | . . . . . . . . . . . . . . . . . 1 Flight 30 | . . . . . 5 . 2 . 3 2 . 6 1 2 5 2 2 Utility 69 | 2 4 4 12 11 4 . 3 . 7 . 1 8 2 5 1 3 2 Device 17 | . . 1 . 2 . . 1 . 3 . 1 3 1 2 1 1 1 Storage 13 | 2 3 3 . 2 1 . . . . . . 1 . . . 1 . Processor 14 | . . . . 1 2 . 1 . 3 . . 4 1 1 . . 1 Hackware 7 | . . . . 1 1 . 1 . 1 . . . . 2 . 1 . Protection 18 | . 1 . 12 5 . . . . . . . . . . . . . Artifact . | . . . . . . . . . . . . . . . . . . Weapon 66 | 1 4 9 13 9 4 . . . 6 4 3 3 5 1 . . 4 Energy Gun 5 | 1 1 . 1 . . . . . 2 . . . . . . . . Energy Cannon 5 | . 2 3 . . . . . . . . . . . . . . . Ballistic Gun 22 | . 1 4 9 8 . . . . . . . . . . . . . Ballistic Cannon 1 | . . . 1 . . . . . . . . . . . . . . Launcher 5 | . . . . . . . . . . 1 1 1 . . . . 2 Special Weapon 5 | . . . . . . . . . 1 . . 1 3 . . . . Impact Weapon 14 | . . 2 2 1 2 . . . 3 1 . 1 1 1 . . . Slashing Weapon 8 | . . . . . 1 . . . . 2 2 . 1 . . . 2 Piercing Weapon 1 | . . . . . 1 . . . . . . . . . . . . Special Melee Weapon . | . . . . . . . . . . . . . . . . . . Unidentified Prototypes 21 | . . 1 1 1 4 . 2 . 1 . . 6 . 1 1 2 1 Parts Lost 45 | . 6 6 4 6 . . 1 1 . 6 1 1 3 . . 3 7 Power 10 | . 1 1 . 1 . . 1 . . 2 . . 2 . . 1 1 Propulsion 19 | . 4 3 2 3 . . . . . 3 1 1 . . . 1 1 Utility 10 | . . . 1 2 . . . 1 . 1 . . 1 . . . 4 Weapon 6 | . 1 2 1 . . . . . . . . . . . . 1 1 Highest Loss Streak 7 | . 3 4 3 3 . . 1 1 . 3 1 1 2 . . 3 7 To Critical Strikes . | . . . . . . . . . . . . . . . . . . Average Slot Usage (%) 87 | . 94 76 93 98 90 92 90 90 86 75 59 65 82 87 90 89 81 Engine 6 | . 13 8 10 8 7 7 5 . 1 1 . 3 . 1 4 4 . Treads 7 | . . . 11 25 1 . . . . . . . . . . . . Wheel 5 | . 24 16 8 . . . . . . . . . . . . . . Flight 7 | . . . . . 27 30 26 26 20 13 8 8 23 26 28 25 18 Device 3 | . . 1 . 1 7 7 6 6 8 5 5 5 5 6 9 8 7 Storage 14 | . 23 19 22 21 8 7 6 6 5 5 5 5 5 5 4 4 4 Processor 9 | . . . . . 12 15 19 20 19 23 23 24 24 24 19 17 19 Hackware 7 | . . . . 7 13 15 18 18 15 16 11 11 11 14 19 20 18 Protection 7 | . 4 11 18 13 1 . . . . . . . . . . . . Energy Gun 1 | . 13 . . . . . . . . . . 1 . . . . . Energy Cannon 1 | . 7 6 . . . . . . . . . . . . . . . Ballistic Gun 9 | . 6 12 20 16 2 . . . . . . . . . . . . Impact Weapon 1 | . . . . . . . . . 4 4 1 . 2 3 4 3 . Peak Build Rating 157 | 6 7 17 18 29 43 38 54 53 71 79 61 68 74 77 116 134 157 Average Rating 38 | 4 6 11 15 24 36 38 49 51 61 64 51 54 60 71 96 129 139 On Entrance 46 | . 6 7 16 15 29 38 38 50 50 71 57 45 56 54 77 111 116 Naked Turns . | . . . . . . . . . . . . . . . . . . Heaviest Build 77 | 14 21 56 64 77 18 18 18 18 24 25 15 20 26 26 34 44 51 Greatest Support 62 | 32 32 32 40 60 20 20 21 21 26 26 18 25 23 27 41 51 62 Greatest Overweight (x) 5 | . 1 4 5 2 . . . . . 1 3 1 1 . . 1 . Average Overweight (x) . | . . 1 1 . . . . . . . . . . . . . . Largest Inventory Capacity 15 | 8 10 15 15 15 15 10 10 10 10 10 10 10 10 10 10 10 10 Average Capacity 12 | 7 9 11 15 15 10 10 10 10 10 10 10 10 10 10 10 10 10 Most Carried 15 | 5 7 11 15 15 14 10 10 10 10 10 7 10 10 9 8 10 10 Average Carried 10 | 3 4 8 13 13 7 10 9 9 9 8 6 9 9 6 6 9 7 Final Capacity 15 | 8 10 15 15 15 10 10 10 10 10 10 10 10 10 10 10 10 10 Final Carried 15 | 5 6 9 15 14 10 10 10 9 9 6 7 10 7 9 8 10 7 Class Distribution -------------------- 38% | Mutant 26% | Hacker-Scout 20% | Scavenger-Mutant 5% | Scavenger-Sprinter 4% | Scavenger-Scout Dominant Class ---------------- Mutant | -10/Materials Mutant | -9/Materials Mutant | -9/Storage Scavenger-Mutant | -8/Materials Hacker-Sprinter | -7/Factory Hacker-Sprinter | -7/DSF Hacker-Scout | -6/Factory Hacker-Scout | -6/Extension Hacker-Scout | -5/Factory Hacker-Scout | -5/Upper Caves Hacker-Scout | -5/Upper Caves Hacker-Scout | -5/Warlord Scavenger-Sprinter | -4/Proximity Caves Scavenger-Scout | -4/Factory Hacker-Scout | -3/Research Hacker-Scout | -2/Research Hacker-Scout | -1/Access Resources | -11 -10 -9 -9 -8 -7 -7 -6 -6 -5 -5 -5 -5 -4 -4 -3 -2 -1 ----------- Run | Yrd Mat Mat Sto Mat Fac DSF Fac Ext Fac Upp Upp War Pro Fac Res Res Acc Matter Collected 3983 | 260 159 368 994 1060 . 74 79 . 227 86 77 269 90 . 103 34 103 Remotely . | . . . . . . . . . . . . . . . . . . Salvage Created 5936 | 62 692 924 1448 1541 . 217 . . 254 70 91 54 219 198 132 34 . Parts 289 | 3 37 62 72 85 . 9 . . 8 5 2 . 3 2 1 . . Haulers Intercepted 15 | . 2 1 4 3 . 1 . . 1 . . . . 2 1 . . Recyclers Shooed 6 | . 3 . 2 1 . . . . . . . . . . . . . Parts Field Recycled . | . . . . . . . . . . . . . . . . . . Retrieved Matter . | . . . . . . . . . . . . . . . . . . Parts Self-Destructed 13 | . . . . . . . . . . 9 3 . 1 . . . . Prevented 4 | . . . . . . . . . . . 4 . . . . . . Kills | -11 -10 -9 -9 -8 -7 -7 -6 -6 -5 -5 -5 -5 -4 -4 -3 -2 -1 ------- Run | Yrd Mat Mat Sto Mat Fac DSF Fac Ext Fac Upp Upp War Pro Fac Res Res Acc Combat Hostiles Destroyed 83 | . 11 18 17 22 . 1 . . 2 4 . 2 5 . . 1 . Melee 4 | . . . . . . 1 . . 1 2 . . . . . . . Guns 62 | . 9 14 17 22 . . . . . . . . . . . . . Cannons 7 | . 2 4 . . . . . . . . . . 1 . . . . AOE 5 | . . . . . . . . . . 1 . 1 3 . . . . Classes Destroyed 15 | 1 5 5 . 2 . . . . . . 1 1 . . . . . Worker 6 | . 2 2 . 2 . . . . . . . . . . . . . Builder 5 | . . 1 1 2 . . . . 1 . . . . . . . . Hauler 15 | . 2 1 4 3 . 1 . . 1 . . . . 2 1 . . Recycler 11 | 1 2 1 5 2 . . . . . . . . . . . . . Operator 2 | . . 1 . . . . . . . . . . . . 1 . . Watcher 9 | . 2 1 2 1 . . . . 3 . . . . . . . . Swarmer 17 | . 3 4 3 . . . . . 2 4 . . . . . 1 . Grunt 36 | . 8 9 4 11 . . . . . . . . 4 . . . . Brawler 2 | . . 1 . . . . . . . . . 1 . . . . . Duelist 2 | . . 1 1 . . . . . . . . . . . . . . Sentry 19 | . . 3 9 6 . . . . . . . . 1 . . . . Specialist 3 | . . . . 2 . 1 . . . . . . . . . . . Hunter 3 | . . . . 3 . . . . . . . . . . . . . Striker 1 | . . . . . . . . . . . . 1 . . . . . Samaritan 2 | . . . . . . . . . . . 2 . . . . . . Best Kill Streak 7 | 1 6 6 7 4 . 2 . . 3 3 . 1 3 2 1 1 . Combat Bots Only 6 | . 5 6 5 3 . 1 . . 2 3 . 1 3 . . 1 . Max Kills in Single Turn 2 | 1 1 2 2 2 . 1 . . 1 1 1 1 2 1 1 1 . Gunslinging . | . . . . . . . . . . . . . . . . . . Exploded 2 | . . . . . . . . . . 1 . 1 2 . . . . Melee 1 | . . . . . . 1 . . 1 1 . . . . . . . Uniques/NPCs Destroyed . | . . . . . . . . . . . . . . . . . . Combat | -11 -10 -9 -9 -8 -7 -7 -6 -6 -5 -5 -5 -5 -4 -4 -3 -2 -1 -------- Run | Yrd Mat Mat Sto Mat Fac DSF Fac Ext Fac Upp Upp War Pro Fac Res Res Acc Hostile Shots Fired 768 | . 75 77 126 155 . 5 3 33 6 84 30 11 39 10 . 39 75 Missed 293 | . 16 20 32 39 . 3 1 24 5 33 19 6 21 8 . 19 47 Damage Taken 7466 | . 676 730 1249 1820 . 80 36 99 23 774 130 127 246 28 . 506 942 Core 1358 | . 160 93 196 182 . 57 . 45 . 236 25 29 65 . . 20 250 Absorbed by Shields . | . . . . . . . . . . . . . . . . . . Redirected to Shielding 47 | . 3 16 21 7 . . . . . . . . . . . . . Regen/Repaired (Parts) 193 | . 107 . . . . . . . 46 . . 40 . . . . . Core Remaining (%) 78 | 100 36 . 27 66 . 91 . 94 . . . . 64 100 100 98 84 Volleys Fired 354 | 2 74 61 92 110 . . . . . 1 2 4 4 . . . 4 Largest 2 | 1 2 2 2 2 . . . . . 1 1 1 1 . . . 1 Hottest 136 | 40 100 136 46 53 . . . . . 46 46 46 . . . . 80 Shots Fired 654 | 2 133 105 179 220 . . . . . 1 2 4 4 . . . 4 Gun 592 | 2 113 78 179 220 . . . . . . . . . . . . . Cannon 47 | . 20 27 . . . . . . . . . . . . . . . Launcher 11 | . . . . . . . . . . 1 2 4 . . . . 4 Special 4 | . . . . . . . . . . . . . 4 . . . . Kinetic 529 | . 54 76 179 220 . . . . . . . . . . . . . Thermal 99 | 2 70 27 . . . . . . . . . . . . . . . Explosive 13 | . . . . . . . . . . 1 2 4 4 . . . 2 Electromagnetic 13 | . 9 2 . . . . . . . . . . . . . . 2 Robot Hit Streak 17 | 2 11 11 16 17 . . . . . . . . 6 . . . . Robot Miss Streak 5 | . 4 2 5 3 . . . . . . . . . . . . . Penetration Max 1 | . . . . 1 . . . . . . . . . . . . . Secondary Targets 7 | . . 1 4 2 . . . . . . . . . . . . . Max Gunslinging Chain 1 | . . 1 1 1 . . . . . . . . . . . . . Shots Hit Robots 483 | 2 86 76 125 160 . 4 . . 8 3 3 3 6 3 3 1 . Core Hits 215 | 2 35 34 49 66 . 2 . . 4 4 3 7 7 1 . . 1 Critical Kills 4 | . . . . 2 . . . . 2 . . . . . . . . Critical Parts Destroyed 9 | . 1 . 1 . . . . . . 2 . . 2 . 2 1 . Critical Strikes 13 | . 1 . 1 2 . . . . 2 2 . . 2 . 2 1 . Destroy 4 | . 1 . 1 2 . . . . . . . . . . . . . Smash 9 | . . . . . . . . . 2 2 . . 2 . 2 1 . Melee Attacks 108 | . . 5 3 3 . 10 10 . 20 8 4 3 6 13 6 5 12 Impact 69 | . . 5 3 3 . . . . 19 8 . 3 4 13 6 5 . Slashing 18 | . . . . . . . . . . . 4 . 2 . . . 12 Piercing 21 | . . . . . . 10 10 . 1 . . . . . . . . Sneak Attacks 10 | . . . . . . 1 . . 2 . 3 . 1 2 1 . . Combat Hostiles 1 | . . . . . . . . . . . . . 1 . . . . Follow-up Attacks . | . . . . . . . . . . . . . . . . . . Damage Inflicted 10608 | 22 972 1318 1956 2789 . 182 . . 603 227 309 601 835 312 254 61 167 Guns 6394 | 22 781 846 1956 2789 . . . . . . . . . . . . . Cannons 545 | . 191 354 . . . . . . . . . . . . . . . Explosions 1208 | . . . . . . . . . . 65 66 397 513 . . . 167 Melee 2362 | . . 118 . . . 182 . . 603 162 243 204 223 312 254 61 . Ramming . | . . . . . . . . . . . . . . . . . . Kinetic 5915 | . 336 834 1956 2789 . . . . . . . . . . . . . Thermal 906 | 22 530 354 . . . . . . . . . . . . . . . Explosive 1208 | . . . . . . . . . . 65 66 397 513 . . . 167 Electromagnetic 118 | . 106 12 . . . . . . . . . . . . . . . Impact 1937 | . . 118 . . . . . . 603 162 . 204 223 312 254 61 . Slashing 342 | . . . . . . . . . . . 243 . 99 . . . . Piercing 182 | . . . . . . 182 . . . . . . . . . . . Highest Corruption 12 | . . 3 3 . . . . . . . . . . . . . 12 Average Corruption 3 | . . 2 3 . . . . . . . . . . . . . 11 Corruption Purged . | . . . . . . . . . . . . . . . . . . Corruption Blocked . | . . . . . . . . . . . . . . . . . . Effects 41 | . . 5 30 . . . . . . . . . . . . . 6 Message Errors 4 | . . 2 2 . . . . . . . . . . . . . . Matter Fused 11 | . . . 11 . . . . . . . . . . . . . . Heat Flow Errors 3 | . . . 2 . . . . . . . . . . . . . 1 Energy Discharges 5 | . . 1 3 . . . . . . . . . . . . . 1 Parts Fused 1 | . . . 1 . . . . . . . . . . . . . . Data Loss (minor) 10 | . . 2 8 . . . . . . . . . . . . . . Data Loss (major) 1 | . . . 1 . . . . . . . . . . . . . . Misfires 1 | . . . 1 . . . . . . . . . . . . . . Alerts 1 | . . . 1 . . . . . . . . . . . . . . Misdirections 4 | . . . . . . . . . . . . . . . . . 4 Overload Shots . | . . . . . . . . . . . . . . . . . . Overflow Damage 1005 | . . 26 . . . . . . 269 117 63 94 102 116 157 61 . Projectiles 20 | . . . . . . . . . . . . . 20 . . . . Explosions 17 | . . . . . . . . . . . . . 17 . . . . Melee 968 | . . 26 . . . . . . 269 117 63 94 65 116 157 61 . Knockbacks 4 | . . . . . . . . . 1 1 . 2 . . . . . Impact 4 | . . . . . . . . . 1 1 . 2 . . . . . Kinetic . | . . . . . . . . . . . . . . . . . . Secondary . | . . . . . . . . . . . . . . . . . . Self-Inflicted Damage 79 | . . . . . . . . . . . . . . . . . 79 Shots 6 | . . . . . . . . . . . . . . . . . 6 Rammed . | . . . . . . . . . . . . . . . . . . Targets Rammed . | . . . . . . . . . . . . . . . . . . Kicked . | . . . . . . . . . . . . . . . . . . Crushed . | . . . . . . . . . . . . . . . . . . Highest Temperature 244 | 20 226 183 244 184 . . . . 12 9 . . . . 3 66 236 Average Temperature 56 | 20 73 84 26 46 . . . . 12 9 . . . . 1 18 83 Received Heat Transfer 1896 | . 252 240 417 729 . . 18 30 27 27 . . 36 . . 90 30 Siege Activations . | . . . . . . . . . . . . . . . . . . Robots Corrupted 9 | . . . . . . . . . 3 1 . 1 1 1 1 1 . Combat Hostiles 5 | . . . . . . . . . 1 1 . 1 1 . . 1 . Parts Fried 9 | . . . . . . . . . 4 1 . . . 1 2 1 . Impact Corruptions 24 | . . 1 . . . . . . 8 4 . 2 2 1 3 3 . Robots Melted . | . . . . . . . . . . . . . . . . . . Combat Hostiles . | . . . . . . . . . . . . . . . . . . Parts Melted 2 | . . 2 . . . . . . . . . . . . . . . Heat Transferred 1935 | 50 1182 703 . . . . . . . . . . . . . . . Parts Sabotaged . | . . . . . . . . . . . . . . . . . . Parts Stolen . | . . . . . . . . . . . . . . . . . . Parts Stripped . | . . . . . . . . . . . . . . . . . . Power Chain Reactions . | . . . . . . . . . . . . . . . . . . Alert | -11 -10 -9 -9 -8 -7 -7 -6 -6 -5 -5 -5 -5 -4 -4 -3 -2 -1 ------- Run | Yrd Mat Mat Sto Mat Fac DSF Fac Ext Fac Upp Upp War Pro Fac Res Res Acc Peak Influence 505 | 5 217 325 505 237 33 63 203 114 154 . . . . 214 138 224 379 Initial 134 | . 3 11 97 14 . 23 32 94 58 . . . . 100 48 72 134 Average 126 | 2 81 175 197 98 26 41 106 95 61 . . . . 143 77 90 186 Maximum Alert Level 2 | . 1 1 2 1 . . 1 . . . . . . 1 . 1 1 Low Security (%) 80 | 100 94 57 47 99 100 100 98 100 100 . . . . 99 100 95 52 Level 1 17 | . 5 42 46 . . . 1 . . . . . . . . 4 47 Level 2 1 | . . . 6 . . . . . . . . . . . . . . Level 3 . | . . . . . . . . . . . . . . . . . . Level 4 . | . . . . . . . . . . . . . . . . . . Level 5 . | . . . . . . . . . . . . . . . . . . High Security . | . . . . . . . . . . . . . . . . . . Max Security . | . . . . . . . . . . . . . . . . . . Squads Dispatched 26 | . 2 3 3 3 . . 1 . 4 . . . . 2 2 3 3 Investigation 3 | . . 1 . . . . 1 . . . . . . 1 . . . Extermination 2 | . . . . . . . . . 1 . . . . . . . 1 Reinforcement 18 | . 2 2 1 3 . . . . 3 . . . . 1 2 3 1 Assault . | . . . . . . . . . . . . . . . . . . Garrison 3 | . . . 2 . . . . . . . . . . . . . 1 Intercept . | . . . . . . . . . . . . . . . . . . Searches Triggered . | . . . . . . . . . . . . . . . . . . Construction Impeded 1 | . . . . . . . . . 1 . . . . . . . . Haulers Reinforced 2 | . . . . . . . . . . . . . . 1 1 . . Active Scanning Responses . | . . . . . . . . . . . . . . . . . . Cargo Convoy Interrupts . | . . . . . . . . . . . . . . . . . . Stealth | -11 -10 -9 -9 -8 -7 -7 -6 -6 -5 -5 -5 -5 -4 -4 -3 -2 -1 --------- Run | Yrd Mat Mat Sto Mat Fac DSF Fac Ext Fac Upp Upp War Pro Fac Res Res Acc Distress Signals 13 | . 2 . . 3 . . 1 1 . . . . . 1 1 2 2 Communications Jammed . | . . . . . . . . . . . . . . . . . . Distress Signals . | . . . . . . . . . . . . . . . . . . Times Spotted 259 | . 20 25 24 34 . 1 12 5 11 24 1 31 9 9 4 24 25 Peak Tracking Total 16 | . 5 4 4 4 . 2 6 8 5 12 1 13 4 8 5 16 12 Tactical Retreats 23 | . . 1 . 1 . . 3 . 2 7 . 1 2 1 . 3 2 Traps | -11 -10 -9 -9 -8 -7 -7 -6 -6 -5 -5 -5 -5 -4 -4 -3 -2 -1 ------- Run | Yrd Mat Mat Sto Mat Fac DSF Fac Ext Fac Upp Upp War Pro Fac Res Res Acc Traps Triggered 15 | . 1 2 9 . . . 2 . 1 . . . . . . . . Indirectly . | . . . . . . . . . . . . . . . . . . Trap Hack Attempts . | . . . . . . . . . . . . . . . . . . Triggered . | . . . . . . . . . . . . . . . . . . Disarmed . | . . . . . . . . . . . . . . . . . . Reprogrammed 6 | . . . . . . . . . . . . . . 6 . . . Reused 1 | . . . . . . . . . . . . . . . . . 1 Traps Extracted . | . . . . . . . . . . . . . . . . . . Installed 1 | . . . . . . . . . . . . . . . . . 1 Triggered 15 | . . . . . . . . . . 1 3 9 1 . . . 1 Most Traps Carried 1 | . . . . . . . . . . . . . . . . . 1 Machines | -11 -10 -9 -9 -8 -7 -7 -6 -6 -5 -5 -5 -5 -4 -4 -3 -2 -1 ---------- Run | Yrd Mat Mat Sto Mat Fac DSF Fac Ext Fac Upp Upp War Pro Fac Res Res Acc Machines Disabled 6 | . 2 . 2 . . 1 . . . . . . . . . . 1 Max in Single Turn 2 | . 2 . 1 . . 1 . . . . . . . . . . 1 Garrison Access 2 | . . . 1 1 . . . . . . . . . . . . . Energy Cycler 1 | . . . . . . . . . . . . . . . . . 1 Machines Repaired . | . . . . . . . . . . . . . . . . . . Machines Dismantled . | . . . . . . . . . . . . . . . . . . Machines Sabotaged . | . . . . . . . . . . . . . . . . . . Overloaded Fab Kills . | . . . . . . . . . . . . . . . . . . Hacking | -11 -10 -9 -9 -8 -7 -7 -6 -6 -5 -5 -5 -5 -4 -4 -3 -2 -1 --------- Run | Yrd Mat Mat Sto Mat Fac DSF Fac Ext Fac Upp Upp War Pro Fac Res Res Acc Machines Accessed 76 | . 6 9 11 10 6 . 6 1 8 . 1 3 . 7 3 2 3 Terminals 54 | . 4 7 10 8 3 . 6 1 5 . . . . 5 2 1 2 Fabricators 5 | . . . . . 1 . . . 1 . . . . 1 1 1 . Repair Stations 3 | . 1 . . . 1 . . . 1 . . . . . . . . Recycling Units 5 | . 1 1 . 1 . . . . 1 . . . . . . . 1 Scanalyzers 2 | . . 1 . . . . . . . . . . . 1 . . . Garrison Access 3 | . . . 1 1 1 . . . . . . . . . . . . Total Hacks 233 | . 27 26 23 26 13 . 25 1 31 . 1 8 . 30 7 8 7 Successful 145 | . 11 16 17 18 3 . 11 1 21 . 1 8 . 23 5 7 3 Failed 88 | . 16 10 6 8 10 . 14 . 10 . . . . 7 2 1 4 Catastrophic 12 | . 1 1 2 3 . . 4 . . . . . . . . . 1 Database Lockouts . | . . . . . . . . . . . . . . . . . . Manual 117 | . 10 22 13 17 5 . 19 . 11 . . 1 . 11 4 2 2 Terminals 184 | . 21 22 22 23 7 . 25 1 22 . . . . 22 6 7 6 Fabricators 7 | . . . . . 2 . . . 1 . . . . 2 1 1 . Repair Stations 11 | . 3 . . . 1 . . . 7 . . . . . . . . Recycling Units 7 | . 3 1 . 1 . . . . 1 . . . . . . . 1 Scanalyzers 9 | . . 3 . . . . . . . . . . . 6 . . . Garrison Access 6 | . . . 1 2 3 . . . . . . . . . . . . Terminal Hacks 83 | . 8 5 13 10 1 . 6 1 12 . 1 8 . 10 2 4 2 Record 14 | . . 2 . . . . . . 1 . . 8 . 1 . 2 . Part Schematic 2 | . . . 1 . . . . . . . . . . . 1 . . Robot Analysis 2 | . . . 2 . . . . . . . . . . . . . . Prototype ID Bank 10 | . 2 . 2 1 . . 1 . 3 . . . . 1 . . . Open Door 7 | . . . 3 . . . 1 1 . . 1 . . . . . 1 Open DSF 3 | . . . . . 1 . 1 . . . . . . . 1 . . Level Access Points 3 | . . . . 1 . . . . . . . . . 1 . 1 . Branch Access Points 6 | . . . 1 1 . . 1 . 1 . . . . 1 . . 1 Emergency Access Points 1 | . . . . . . . . . . . . . . 1 . . . Terminal Index 5 | . . 1 . 1 . . 1 . 1 . . . . 1 . . . Fabricator Index 1 | . . . . . . . . . 1 . . . . . . . . Alert Level 8 | . 2 1 1 3 . . . . 1 . . . . . . . . Unreport Threat 12 | . 1 1 2 3 . . 1 . 2 . . . . 1 . 1 . Locate Traps 1 | . 1 . . . . . . . . . . . . . . . . Reprogram Traps 1 | . . . . . . . . . . . . . . 1 . . . Security Status 1 | . . . . . . . . . 1 . . . . . . . . Zone Layout 6 | . 2 . 1 . . . . . 1 . . . . 2 . . . Fabricator Hacks 4 | . . . . . . . . . . . . . . 2 1 1 . Load Schematic 1 | . . . . . . . . . . . . . . 1 . . . Build 3 | . . . . . . . . . . . . . . 1 1 1 . Repair Station Hacks 6 | . 2 . . . . . . . 4 . . . . . . . . Scan Component 3 | . 1 . . . . . . . 2 . . . . . . . . Repair 3 | . 1 . . . . . . . 2 . . . . . . . . Recycling Unit Hacks 4 | . 1 1 . 1 . . . . 1 . . . . . . . . Retrieve Components 4 | . 1 1 . 1 . . . . 1 . . . . . . . . Scanalyzer 9 | . . 3 . . . . . . . . . . . 6 . . . Insert Component 4 | . . 1 . . . . . . . . . . . 3 . . . Analyze 5 | . . 2 . . . . . . . . . . . 3 . . . Garrison Access Hacks 2 | . . . 1 1 . . . . . . . . . . . . . Seal Access 2 | . . . 1 1 . . . . . . . . . . . . . Unauthorized Hacks 37 | . . 7 3 6 2 . 5 . 4 . . . . 5 2 2 1 Terminals 37 | . . 7 3 6 2 . 5 . 4 . . . . 5 2 2 1 Assimilate 3 | . . . . 1 . . . . 2 . . . . . . . . Botnet 27 | . . 6 3 4 2 . 4 . 1 . . . . 4 1 1 1 Operators 7 | . . 1 . 1 . . 1 . 1 . . . . 1 1 1 . Fabricators . | . . . . . . . . . . . . . . . . . . Repair Stations . | . . . . . . . . . . . . . . . . . . Recycling Units . | . . . . . . . . . . . . . . . . . . Scanalyzers . | . . . . . . . . . . . . . . . . . . Garrison Access . | . . . . . . . . . . . . . . . . . . Data Cores Recovered 2 | . . 1 . . . . . . . . . . . . 1 . . Used . | . . . . . . . . . . . . . . . . . . Hacking Detections 51 | . 5 7 7 8 6 . 4 . 4 . . . . 5 1 1 3 Full Trace Events 4 | . . 1 1 1 . . . . . . . . . 1 . . . Feedback Events . | . . . . . . . . . . . . . . . . . . Feedback Blocked . | . . . . . . . . . . . . . . . . . . Robot Schematics Acquired . | . . . . . . . . . . . . . . . . . . Robots Built 3 | . . . . . . . . . . . . . . . 2 1 . Authchips . | . . . . . . . . . . . . . . . . . . Time 108 | . . . . . . . . . . . . . . . 27 81 . Total Robot Build Rating 3 | . . . . . . . . . . . . . . . 2 1 . Part Schematics Acquired 5 | . . 1 1 . . . . . . . . . . 2 1 . . Parts Built 2 | . . . . . . . . . . . . . . 2 . . . Authchips . | . . . . . . . . . . . . . . . . . . Time 106 | . . . . . . . . . . . . . . 106 . . . Total Part Build Rating 12 | . . . . . . . . . . . . . . 12 . . . Parts Repaired 3 | . 1 . . . . . . . 2 . . . . . . . . Time 64 | . 26 . . . . . . . 38 . . . . . . . . Parts Recycled . | . . . . . . . . . . . . . . . . . . Recycled Matter . | . . . . . . . . . . . . . . . . . . Retrieved Matter . | . . . . . . . . . . . . . . . . . . Retrieved Components 10 | . . 9 . . . . . . 1 . . . . . . . . Parts Scanalyzed 3 | . . 1 . . . . . . . . . . . 2 . . . Part Schematics Acquired 3 | . . 1 . . . . . . . . . . . 2 . . . Parts Damaged 1 | . . 1 . . . . . . . . . . . . . . . Bothacking | -11 -10 -9 -9 -8 -7 -7 -6 -6 -5 -5 -5 -5 -4 -4 -3 -2 -1 ------------ Run | Yrd Mat Mat Sto Mat Fac DSF Fac Ext Fac Upp Upp War Pro Fac Res Res Acc Used RIF Installer . | . . . . . . . . . . . . . . . . . . Robots Hacked . | . . . . . . . . . . . . . . . . . . Non-combat . | . . . . . . . . . . . . . . . . . . Combat . | . . . . . . . . . . . . . . . . . . Robot Hacks Applied . | . . . . . . . . . . . . . . . . . . Relay Couplers Released . | . . . . . . . . . . . . . . . . . . Fabnet Peak Effective % . | . . . . . . . . . . . . . . . . . . Robots Rewired . | . . . . . . . . . . . . . . . . . . Allies Hacked . | . . . . . . . . . . . . . . . . . . Hacks Repelled . | . . . . . . . . . . . . . . . . . . Allies | -11 -10 -9 -9 -8 -7 -7 -6 -6 -5 -5 -5 -5 -4 -4 -3 -2 -1 -------- Run | Yrd Mat Mat Sto Mat Fac DSF Fac Ext Fac Upp Upp War Pro Fac Res Res Acc Total Allies 4 | . . . . . . . . . 1 . . . . . 2 1 . Largest Group 2 | . . . . . . . . . 1 . . . . . 2 1 . Highest-Rated Group 20 | . . . . . . . . . 10 . . . . . 20 10 . Highest-Rated Ally 10 | . . . . . . . . . 10 . . . . . 10 10 . Total Orders 8 | . . . . . . . . . . . . . . . 6 1 1 ROAM 1 | . . . . . . . . . . . . . . . 1 . . FOLLOW 1 | . . . . . . . . . . . . . . . 1 . . TUNNEL 1 | . . . . . . . . . . . . . . . 1 . . EXPLORE 5 | . . . . . . . . . . . . . . . 3 1 1 Ally Attacks . | . . . . . . . . . . . . . . . . . . Total Damage . | . . . . . . . . . . . . . . . . . . Kills . | . . . . . . . . . . . . . . . . . . Allies Corrupted . | . . . . . . . . . . . . . . . . . . Allies Melted 1 | . . . . . . . . . . . . . . . . 1 . Intel | -11 -10 -9 -9 -8 -7 -7 -6 -6 -5 -5 -5 -5 -4 -4 -3 -2 -1 ------- Run | Yrd Mat Mat Sto Mat Fac DSF Fac Ext Fac Upp Upp War Pro Fac Res Res Acc Robot Analysis Total 2 | . . . 2 . . . . . . . . . . . . . . Derelict Logs Recovered 7 | . . . . . . . . . . 2 2 . 3 . . . . Drone Launches 14 | . . . . . . . . . . . . . . . 10 . 4 Drone Recoveries 7 | . . . . . . . . . . . . . . . 4 . 3 Exploration | -11 -10 -9 -9 -8 -7 -7 -6 -6 -5 -5 -5 -5 -4 -4 -3 -2 -1 ------------- Run | Yrd Mat Mat Sto Mat Fac DSF Fac Ext Fac Upp Upp War Pro Fac Res Res Acc Turns Passed 8056 | 61 698 736 1430 1783 132 46 204 60 501 324 306 577 309 313 187 122 267 Spaces Moved 8538 | 46 399 437 568 705 339 78 485 126 971 509 543 730 720 663 381 367 471 Core 7 | 5 . . . . . . . . . . 2 . . . . . . Treads 981 | . . . 276 705 . . . . . . . . . . . . . Legs . | . . . . . . . . . . . . . . . . . . Wheels 1169 | 41 399 437 292 . . . . . . . . . . . . . . Hover . | . . . . . . . . . . . . . . . . . . Flight 6381 | . . . . . 339 78 485 126 971 509 541 730 720 663 381 367 471 Fastest Speed 20 | 50 90 100 105 160 27 27 26 26 26 34 34 28 28 27 23 20 28 Average Speed 61 | 94 99 112 182 190 27 27 26 26 28 35 37 38 30 27 23 23 28 Slowest Speed 320 | 100 115 150 320 320 27 27 27 26 34 112 200 117 111 27 27 100 31 Overloaded Moves 12 | . . . . . . . . . . 12 . . . . . . . Propulsion Burnouts . | . . . . . . . . . . . . . . . . . . Robots Hopped 18 | . . . . . . . . . 4 5 . . . 1 5 2 1 Cave-ins Triggered 1 | . . . . . . . . . . . . . . . . . 1 Exploration Rate (%) 41 | 4 68 41 78 54 10 52 18 26 36 78 67 65 79 18 14 16 17 Regions Visited 17 Branch Regions 6 Pre-discovered Areas 6 | . . . 1 . . . . . . 2 1 1 1 . . . . Known Exits Taken 12 | . . . . 1 1 . 1 1 1 1 1 1 1 1 1 1 . Unknown Exits Taken 4 | 1 1 1 1 . . . . . . . . . . . . . . Scrap Searched 8 | . . . . . . . . . . 3 2 . 3 . . . . Spaces Dug 69 | . . 1 . 2 . . 10 . 8 11 1 . 16 8 3 3 6 Terrain Destroyed 186 | . . 1 . 2 . . 10 . 8 11 33 3 76 8 3 3 28 Melee 44 | . . 1 . 2 . . 10 . 8 . 1 . 2 8 3 3 6 Projectile 2 | . . . . . . . . . . . . . 2 . . . . AOE 140 | . . . . . . . . . . 11 32 3 72 . . . 22 Terrain Rammed . | . . . . . . . . . . . . . . . . . . Walls Destroyed . | . . . . . . . . . . . . . . . . . . Machines Disabled . | . . . . . . . . . . . . . . . . . . Actions | -11 -10 -9 -9 -8 -7 -7 -6 -6 -5 -5 -5 -5 -4 -4 -3 -2 -1 --------- Run | Yrd Mat Mat Sto Mat Fac DSF Fac Ext Fac Upp Upp War Pro Fac Res Res Acc Total 10569 | 58 578 567 779 956 385 87 546 152 1171 630 637 1025 791 772 463 391 581 Wait 1058 | . 79 16 35 59 3 . 37 26 119 108 79 223 48 80 66 7 73 Move 8488 | 45 398 436 567 704 338 77 484 125 962 500 542 729 719 660 371 363 468 Hop 14 | . . . . . . . . . 4 3 . . . 1 4 1 1 Pick Up 117 | 5 9 16 22 25 9 . 1 . 7 . . 14 . 2 1 3 3 Fast Attach 104 | 6 3 7 21 7 5 . 5 . 11 1 2 14 2 6 3 3 8 Attach 80 | . 6 5 9 10 10 . 2 1 4 4 2 6 5 4 5 3 4 Detach 38 | . . 2 . 1 2 . 3 . 8 3 3 4 2 3 4 1 2 Swap 37 | . 4 6 7 10 1 . . . 3 1 1 1 3 . . . . Drop 150 | . 5 13 19 27 17 . 4 . 15 1 2 27 2 3 3 5 7 Fire 354 | 2 74 61 92 110 . . . . . 1 2 4 4 . . . 4 Melee 106 | . . 5 3 3 . 10 10 . 20 8 4 3 6 13 6 5 10 Ram . | . . . . . . . . . . . . . . . . . . Kick . | . . . . . . . . . . . . . . . . . . Crush . | . . . . . . . . . . . . . . . . . . Escape Stasis 22 | . . . 4 . . . . . 18 . . . . . . . . Rewire . | . . . . . . . . . . . . . . . . . . Trap 1 | . . . . . . . . . . . . . . . . . 1 Miscellaneous . | . . . . . . . . . . . . . . . . . . Route ------- -11/Scrapyard -10/Materials (discovered 2 exits: *Mat / [*Min]) -9/Materials (discovered 2 exits: *Mat / *Sto) -9/Storage (discovered 2 exits: *Mat / Rec) -8/Materials (discovered 3 exits: *Fac x3) -7/Factory -7/DSF -6/Factory (discovered 5 exits: *Fac / Low x2 / *Ext x2) -6/Extension -5/Factory (discovered 4 exits: *Fac x2 / *Upp x2) -5/Upper Caves -5/Upper Caves (discovered 2 exits: *Fac / *War) -5/Warlord -4/Proximity Caves -4/Factory (discovered 6 exits: *Res x4 / *Upp x2) -3/Research (discovered 2 exits: *Res / Arm) -2/Research (discovered 4 exits: *Acc x3 / Tes) -1/Access (discovered 2 exits: [*Sur] / Com) To Epsilon Eridani History --------- Turn | Location | Event 2 | -11/Scrapyard | Met Revision 17 19 | -11/Scrapyard | Discovered new exit (range 15) 62 | -11/Scrapyard | Entered Materials 273 | -10/Materials | Discovered new exit (range 10) 319 | -10/Materials | Build established: Mutant 461 | -10/Materials | Core integrity fell below 50% 520 | -10/Materials | Lost 3 parts (1p1n1w) 729 | -10/Materials | Repaired Med. Storage Unit 733 | -10/Materials | Discovered new exit (range 12) 760 | -10/Materials | Entered another Materials area 760 | -9/Materials | Evolved 2 slots: Utility x2 1132 | -9/Materials | Lost 4 parts (1p3n) 1212 | -9/Materials | Discovered new exit (range 3) 1243 | -9/Materials | Discovered new exit (range 15) 1496 | -9/Materials | Entered Storage 1560 | -9/Storage | Garrison activated, responded to threat 1872 | -9/Storage | Core integrity fell below 50% 1925 | -9/Storage | Identified exit to Recycling 2000 | -9/Storage | Lost 3 parts (1n1u1w) 2445 | -9/Storage | Learned location of Armory (-3) 2851 | -9/Storage | Discovered new exit (range 16) 2926 | -9/Storage | Entered Materials 2926 | -8/Materials | Evolved 2 slots: Propulsion x1, Utility x1 3223 | -8/Materials | Build established: Scavenger-Mutant 3789 | -8/Materials | Identified exit to Factory 3908 | -8/Materials | Lost 3 parts (2n1u) 4709 | -8/Materials | Entered Factory 4709 | -7/Factory | Evolved 2 slots: Propulsion x1, Utility x1 4781 | -7/Factory | Identified exit to DSF 4841 | -7/Factory | Entered DSF 4871 | -7/DSF | Discovered new exit (range 11) 4887 | -7/DSF | Identified exit to Factory 4887 | -7/DSF | Entered Factory 4887 | -6/Factory | Evolved 2 slots: Utility x2 4957 | -6/Factory | Discovered new exit (range 12) 4981 | -6/Factory | Identified exit to Lower Caves 4981 | -6/Factory | Identified exit to Extension 5091 | -6/Factory | Entered Extension 5131 | -6/Extension | Spotted B-75 Beast 5145 | -6/Extension | Spotted B-75 Beast 5151 | -6/Extension | Discovered new exit (range 3) 5151 | -6/Extension | Identified exit to Factory 5151 | -6/Extension | Entered Factory 5151 | -5/Factory | Evolved 2 slots: Power x1, Utility x1 5219 | -5/Factory | Build established: Hacker-Scout 5234 | -5/Factory | Discovered new exit (range 19) 5241 | -5/Factory | Identified exit to Factory 5373 | -5/Factory | Repaired Cesium-ion Thruster 5393 | -5/Factory | Repaired Cesium-ion Thruster 5487 | -5/Factory | Discovered exit to Factory (range 22) 5491 | -5/Factory | Identified exit to Upper Caves 5652 | -5/Factory | Entered Upper Caves 5748 | -5/Upper Caves | Attracted the attention of an 0b10 outpost 5818 | -5/Upper Caves | Lost 3 parts (2p1n) 5827 | -5/Upper Caves | Ambushed by wild Derelicts 5974 | -5/Upper Caves | Discovered new exit (range 4) 5975 | -5/Upper Caves | Identified exit to Upper Caves 5976 | -5/Upper Caves | Entered another Upper Caves area 5976 | -5/Upper Caves | Discovered exit to Factory (range 7) 5996 | -5/Upper Caves | Learned location of Warlord (-5) 6082 | -5/Upper Caves | Learned Factory security intel 6156 | -5/Upper Caves | Spotted B-75 Beast 6229 | -5/Upper Caves | Encountered a Warlord checkpoint 6277 | -5/Upper Caves | Discovered new exit (range 13) 6282 | -5/Upper Caves | Identified exit to Warlord 6282 | -5/Upper Caves | Entered Warlord 6330 | -5/Warlord | Found Prototype Device 6330 | -5/Warlord | Identified Minesniffer Drone Bay 6360 | -5/Warlord | Met Warlord 6385 | -5/Warlord | Warlord's base attacked by MAIN.C 6436 | -5/Warlord | Found Prototype Special Weapon 6436 | -5/Warlord | Identified RU-N14's Throwing Claymores v3 6438 | -5/Warlord | Found RU-N14's Throwing Claymores v3 6440 | -5/Warlord | Found RU-N14's Throwing Claymores v3 6506 | -5/Warlord | Learned Armory security intel 6506 | -5/Warlord | Learned Factory recycling unit intel 6506 | -5/Warlord | Learned Factory scanalyzer intel 6506 | -5/Warlord | Learned Testing security intel 6506 | -5/Warlord | Learned 4 Armory zone layouts 6506 | -5/Warlord | Learned 4 Research zone layouts 6599 | -5/Warlord | Warlord forces counterattacked 6650 | -5/Warlord | Spotted B-86 Titan 6682 | -5/Warlord | Lost 8 allies 6745 | -5/Warlord | Spotted Executioner 6774 | -5/Warlord | Found Prototype Processor 6774 | -5/Warlord | Identified Exp. Core Analyzer 6776 | -5/Warlord | Found Prototype Device 6776 | -5/Warlord | Identified Adv. Kinecellerator 6786 | -5/Warlord | Discovered new exit (range 15) 6817 | -5/Warlord | Spotted Striker 6822 | -5/Warlord | Found Prototype Processor 6822 | -5/Warlord | Identified Exp. Targeting Computer 6844 | -5/Warlord | Destroyed Striker 6856 | -5/Warlord | Identified exit to Proximity Caves 6859 | -5/Warlord | Entered Proximity Caves 6861 | -4/Proximity Caves | Learned 4 Research zone layouts 6868 | -4/Proximity Caves | Lost 22 allies 6954 | -4/Proximity Caves | Learned Research non-interactive machine intel 6971 | -4/Proximity Caves | Spotted B-86 Titan 7038 | -4/Proximity Caves | Attracted the attention of an 0b10 checkpoint 7060 | -4/Proximity Caves | Build established: Scavenger-Sprinter 7164 | -4/Proximity Caves | Discovered exit to Factory (range 6) 7168 | -4/Proximity Caves | Entered Factory 7168 | -4/Factory | Evolved 2 slots: Propulsion x1, Utility x1 7170 | -4/Factory | Loaded intel: 6 recycling unit locations 7171 | -4/Factory | Loaded intel: 4 scanalyzer locations 7206 | -4/Factory | Discovered new exit (range 10) 7291 | -4/Factory | Found Prototype Hackware 7291 | -4/Factory | Identified Exp. Hacking Suite 7304 | -4/Factory | Fabricated Field Propulsion Drive? 7316 | -4/Factory | Identified exit to Upper Caves 7469 | -4/Factory | Identified exit to Research 7481 | -4/Factory | Entered Research 7481 | -3/Research | Evolved 2 slots: Propulsion x1, Utility x1 7482 | -3/Research | Identified exit to Armory 7482 | -3/Research | Identified exit to Research 7483 | -3/Research | Loaded intel: 76 non-interactive machine locations 7487 | -3/Research | Identified exit to DSF 7543 | -3/Research | Fabricated T-07 Excavator (x2) 7625 | -3/Research | Found Prototype Device 7668 | -3/Research | Entered another Research area 7668 | -2/Research | Accompanied by 1 ally 7668 | -2/Research | Warlord forces began assault on 0b10 7668 | -2/Research | Evolved 2 slots: Propulsion x1, Utility x1 7669 | -2/Research | Identified exit to Testing 7670 | -2/Research | Identified Exp. Thermal Defense Suite 7716 | -2/Research | Build established: Hacker-Scout 7734 | -2/Research | Identified exit to Access 7768 | -2/Research | Fabricated A-02 Transporter? 7777 | -2/Research | Spotted B-90 Cyclops 7778 | -2/Research | Research machine network offline 7790 | -2/Research | Entered Access 7790 | -1/Access | Evolved 2 slots: Utility x1, Weapon x1 7816 | -1/Access | Lost 3 parts (1p1n1w) 7911 | -1/Access | Identified exit to Command 7943 | -1/Access | Lost 6 allies 7949 | -1/Access | Found Gamma Bomb Array 7993 | -1/Access | Spotted B-99 Colossus 7994 | -1/Access | Spotted B-99 Colossus 8014 | -1/Access | Crushed by falling debris 8014 | -1/Access | System corruption reached 10% 8020 | -1/Access | Energy Cycler disabled 8052 | -1/Access | Lost 7 parts (1p1n4u1w) 8052 | -1/Access | Discovered new exit (range 11) 8057 | *** | Escaped! Last Messages --------------- extended periods. Tunneling a short distance between rooms is safe unless the area was destabilized by an explosion. 08021_ Particle Cleaver destroyed. 08021_ Penetrated by Slug. 08021_ Slug penetrates Earth. 08032_ Penetrated by Slug. 08032_ Slug penetrates Wall. 08032_ >> Machine Analyzer network decryption results: 08032_ Garrison Access x1 08037_ Acquired Micro-nuke Launcher. 08038_ System corrupted: Heat flow error (+265). 08040_ ALERT: Rogue bot located, Programmers report to Access Zone 8K. 08042_ Y-72 Warden emerges from the garrison. 08052_ Connecting with Terminal... 08052_ Main Access Shell breached. 08052_ EXIT=FOUND 08056_ The Access Shell folds into the floor. Map ----- +----------------------------------------------------+ | ?????????????????????????????????????????????????? | | ?????????????????????????????????????????????????? | | ?????????????????????????????????????????????????? | | ?????????????????????????????????????????????????? | | ?????????????????????????????????????????######### | | ?????????????????????????????????????????? ? | | ?????????????????????????????????????????? ? | | ??????????????????????????????????????????? ! ?? | | ??????????????????????????????????????????? ?? | | ???????????????????????????????????????????? ??? | | ??????????????###########################??? ??? | | ????????????? w #####+#??? | | ????????????? #### | | ????????????????????# ""####### ## | | ????????????????????# ""#?????# ## | | ????????????????????# ""#?????#=* ## | | ????????????????????# T#?????#=* ## | | ???????????????????## ""#?????#= ## | | ??????????????????## ""#?????# # | | ??????????????????# ""##????# / | | ??????????????????# #????# ####### | | ??????????????????### ##????# #?????# | | ????????????????????# #?????# #?????# | | ????????????????????# #?????# #?????# | | ????????????????????# #?????# #?????# | | ????????????????????# @" #?????# ??????# | | ????????????????????# "" #?????# ??????# | | ????????????????????# #????? ?###### | | ????????????????????# #?????? | | ????????????????????# #?????? | | ????????????????????#""""""""""#??????????######## | | ?????????????????????????????????????????????????? | | ?????????????????????????????????######??????????? | | ????????????????????#""""""""""#?# #??????????? | | ????????????????????# #?# ############ | | ????????????????????# #?# # | | ????????????????????# #?# # | | ????????????????????# #?# # | | ????????????????????# #?# + | | ????????????????##### #?# ######### | | ????????????????# ### ### % #???????# | | ????##############"#"### "" """####???????# | | ????# # " #????????# | | ????# " " #????????# | | ????# !" " " #????????# | | ????# " " ""###??????+ | | ????# =! # " " #??????# | | ????# !! # " " #??????## # | | ????# !! # " " #???????# # | | ????# # " " #???????# # | +----------------------------------------------------+ Best States ------------- Heat Dissipation 52 Energy Generation 38 Energy Capacity 360 Matter Stores 300 Matter Capacity 300 Sight Range 22 Robot Scan Range 16 Terrain Scan Range 14 Terrain Scan Density 10 Additional Mass Support 9 Armor Coverage 375 Power Shielding 33 Weapon Shielding 33 Melee Speed Boost 20 Evasion (%) 65 Melee Accuracy 22 Recoil Reduction 3 Offensive Hacking 48 Defensive Hacking 20 Item Schematics ----------------- Imp. Assault Rifle | -9/Materials | Scanalyzed Gauss Cannon | -9/Storage | Hacked Field Propulsion Drive | -4/Factory | Scanalyzed Thunder Hammer | -4/Factory | Scanalyzed Q-thruster | -3/Research | Hacked Robot Schematics ------------------ None Fabricated ------------ Field Propulsion Drive | x2 | -4/Factory T-07 Excavator | x2 | -3/Research | Preloaded A-02 Transporter | x1 | -2/Research | Preloaded Alien Tech Used ----------------- None Achievements -------------- Dramatic Entrance Challenges ------------ None Game ------ Seed LauncherInertialVibroblade Manual? 0 Play Time 04:22:20 Cumulative 96.6 hours Start 2024.08.08 @ 21:42:47 End 2024.08.23 @ 20:45:16 Sessions 6 Manual Loads 0 Difficulty Rogue Special Mode None Game No. 68 Rogue 68 Adventurer 0 Explorer 0 Win Type 0 Total 3 Types 3/0/0/0/0/0/0/0/0 Lore% 31 Gallery% 50 Achievement% 42 Wizard Run 0 Options --------- Layout 1 ASCII 0 Keyboard 0 Movement Mouse Keybinds 0 Fullscreen 1 Font 32/SmallcapsGlow Map View 50x35 Zoom Use 0% Tactical HUD 1 Map Filters NONE Filters NONE Steam 1 RUN: 0ee953a0-cd93-4642-bf47-d042dee06f05